[Event "Titled Tuesday Blitz June 6 Early 2023"]
[White "Martic, Ivan"]
[Black "crosky"]
[WhiteFideId "929301"]
[WhiteElo "2346"]
[BlackElo "2293"]
[Result "1-0"]
[Round "1"]
[TimeControl "180+2"]
[Date "2023.06.06"]
[WhiteClock "0:00:04"]
[BlackClock "0:00:08"]
[Board "148"]

1. e4 {[%clk 0:02:59]}  c6 {[%clk 0:03:00]} 2. d3 {[%clk 0:02:59]}  d5 {[%clk 0:03:01]} 3. Nd2 {[%clk 0:02:59]}  e5 {[%clk 0:03:01]} 4. Ngf3 {[%clk 0:02:59]}  Bd6 {[%clk 0:03:01]} 5. g3 {[%clk 0:02:58]}  Nf6 {[%clk 0:02:59]} 6. Bg2 {[%clk 0:02:58]}  O-O {[%clk 0:03:00]} 7. O-O {[%clk 0:02:58]}  Re8 {[%clk 0:03:01]} 8. Re1 {[%clk 0:02:54]}  a5 {[%clk 0:03:00]} 9. c3 {[%clk 0:02:50]}  a4 {[%clk 0:03:00]} 10. Qc2 {[%clk 0:02:46]}  Nbd7 {[%clk 0:02:54]} 11. Rb1 {[%clk 0:02:42]}  h6 {[%clk 0:02:46]} 12. b4 {[%clk 0:02:41]}  axb3 {[%clk 0:02:44]} 13. axb3 {[%clk 0:02:41]}  Nf8 {[%clk 0:02:24]} 14. exd5 {[%clk 0:02:33]}  cxd5 {[%clk 0:02:13]} 15. c4 {[%clk 0:02:33]}  d4 {[%clk 0:01:56]} 16. c5 {[%clk 0:02:28]}  Bc7 {[%clk 0:01:55]} 17. Nc4 {[%clk 0:02:13]}  Ng6 {[%clk 0:01:42]} 18. b4 {[%clk 0:02:07]}  Nd5 {[%clk 0:01:41]} 19. Bd2 {[%clk 0:02:04]}  Bf5 {[%clk 0:01:38]} 20. Qb3 {[%clk 0:01:59]}  b5 {[%clk 0:01:23]} 21. cxb6 {[%clk 0:01:56]}  Nxb6 {[%clk 0:01:24]} 22. Na5 {[%clk 0:01:55]}  Qd7 {[%clk 0:01:00]} 23. Nb7 {[%clk 0:01:42]}  Rab8 {[%clk 0:00:52]} 24. Nc5 {[%clk 0:01:41]}  Qb5 {[%clk 0:00:52]} 25. h4 {[%clk 0:01:32]}  Nd7 {[%clk 0:00:49]} 26. Nxd7 {[%clk 0:01:26]}  Bxd7 {[%clk 0:00:50]} 27. h5 {[%clk 0:01:21]}  Nf8 {[%clk 0:00:48]} 28. Qc2 {[%clk 0:01:12]}  Bd6 {[%clk 0:00:46]} 29. Nh4 {[%clk 0:00:57]}  Nh7 {[%clk 0:00:41]} 30. Be4 {[%clk 0:00:54]}  Nf6 {[%clk 0:00:41]} 31. Bf5 {[%clk 0:00:52]}  Nxh5 {[%clk 0:00:40]} 32. Qd1 {[%clk 0:00:44]}  Nf6 {[%clk 0:00:40]} 33. Ra1 {[%clk 0:00:38]}  Bxb4 {[%clk 0:00:36]} 34. Bxb4 {[%clk 0:00:35]}  Qxb4 {[%clk 0:00:37]} 35. Bxd7 {[%clk 0:00:33]}  Nxd7 {[%clk 0:00:38]} 36. Nf5 {[%clk 0:00:32]}  Nf6 {[%clk 0:00:31]} 37. Qf3 {[%clk 0:00:31]}  Qb7 {[%clk 0:00:28]} 38. Qxb7 {[%clk 0:00:21]}  Rxb7 {[%clk 0:00:29]} 39. Nd6 {[%clk 0:00:21]}  Rbe7 {[%clk 0:00:29]} 40. Nxe8 {[%clk 0:00:21]}  Rxe8 {[%clk 0:00:30]} 41. Ra5 {[%clk 0:00:19]}  e4 {[%clk 0:00:31]} 42. dxe4 {[%clk 0:00:19]}  Rxe4 {[%clk 0:00:19]} 43. Rxe4 {[%clk 0:00:17]}  Nxe4 {[%clk 0:00:20]} 44. Ra8+ {[%clk 0:00:11]}  Kh7 {[%clk 0:00:19]} 45. Rd8 {[%clk 0:00:12]}  Ng5 {[%clk 0:00:20]} 46. Kg2 {[%clk 0:00:11]}  Ne6 {[%clk 0:00:20]} 47. Rd7 {[%clk 0:00:11]}  Kg6 {[%clk 0:00:20]} 48. f4 {[%clk 0:00:12]}  Kf6 {[%clk 0:00:21]} 49. Kf3 {[%clk 0:00:12]}  g6 {[%clk 0:00:20]} 50. g4 {[%clk 0:00:11]}  h5 {[%clk 0:00:16]} 51. g5+ {[%clk 0:00:11]}  Kg7 {[%clk 0:00:16]} 52. Rd6 {[%clk 0:00:10]}  Kf8 {[%clk 0:00:14]} 53. Ke4 {[%clk 0:00:08]}  Ke7 {[%clk 0:00:15]} 54. Rb6 {[%clk 0:00:08]}  Kf8 {[%clk 0:00:14]} 55. Rb7 {[%clk 0:00:09]}  Kg7 {[%clk 0:00:15]} 56. Ke5 {[%clk 0:00:08]}  h4 {[%clk 0:00:15]} 57. Rb3 {[%clk 0:00:07]}  Kf8 {[%clk 0:00:12]} 58. Rh3 {[%clk 0:00:07]}  Ke7 {[%clk 0:00:13]} 59. Rxh4 {[%clk 0:00:07]}  Ng7 {[%clk 0:00:11]} 60. Rh3 {[%clk 0:00:06]}  Nf5 {[%clk 0:00:12]} 61. Ra3 {[%clk 0:00:06]}  Kf8 {[%clk 0:00:12]} 62. Ra7 {[%clk 0:00:05]}  Kg7 {[%clk 0:00:12]} 63. Ra6 {[%clk 0:00:05]}  Kf8 {[%clk 0:00:12]} 64. Kf6 {[%clk 0:00:05]}  Ke8 {[%clk 0:00:06]} 65. Ra8+ {[%clk 0:00:04]}  Kd7 {[%clk 0:00:07]} 66. Kxf7 {[%clk 0:00:04]}  d3 {[%clk 0:00:08]} 67. Ra3 {[%clk 0:00:04]} 1-0


[Site "https://www.chess.com"]

[Event "Titled Tuesday Blitz June 6 Early 2023"]
[White "Bayo Milagro, Alvaro"]
[Black "Rodriguez Santiago, Jaime"]
[WhiteFideId "22275240"]
[BlackFideId "3100898"]
[WhiteElo "2270"]
[BlackElo "2025"]
[Result "1-0"]
[Round "1"]
[TimeControl "180+2"]
[Date "2023.06.06"]
[WhiteClock "0:02:02"]
[BlackClock "0:01:15"]
[Board "150"]

1. Nf3 {[%clk 0:02:47]}  Nf6 {[%clk 0:02:58]} 2. c4 {[%clk 0:02:46]}  e6 {[%clk 0:02:56]} 3. g3 {[%clk 0:02:46]}  d5 {[%clk 0:02:56]} 4. d4 {[%clk 0:02:45]}  dxc4 {[%clk 0:02:54]} 5. Bg2 {[%clk 0:02:43]}  c5 {[%clk 0:02:54]} 6. O-O {[%clk 0:02:43]}  Nc6 {[%clk 0:02:52]} 7. dxc5 {[%clk 0:02:38]}  Qxd1 {[%clk 0:02:49]} 8. Rxd1 {[%clk 0:02:38]}  Bxc5 {[%clk 0:02:49]} 9. Nbd2 {[%clk 0:02:39]}  c3 {[%clk 0:02:48]} 10. bxc3 {[%clk 0:02:40]}  O-O {[%clk 0:02:48]} 11. Nb3 {[%clk 0:02:40]}  Be7 {[%clk 0:02:46]} 12. c4 {[%clk 0:02:39]}  Bd7 {[%clk 0:02:42]} 13. Bb2 {[%clk 0:02:39]}  Rfc8 {[%clk 0:02:42]} 14. Rac1 {[%clk 0:02:36]}  Be8 {[%clk 0:02:39]} 15. Ne5 {[%clk 0:02:33]}  a5 {[%clk 0:02:32]} 16. Nd3 {[%clk 0:02:29]}  a4 {[%clk 0:02:32]} 17. Nbc5 {[%clk 0:02:29]}  a3 {[%clk 0:02:30]} 18. Bxf6 {[%clk 0:02:27]}  Bxf6 {[%clk 0:02:25]} 19. Nxb7 {[%clk 0:02:28]}  Nd4 {[%clk 0:01:47]} 20. Rd2 {[%clk 0:02:19]}  Ra4 {[%clk 0:01:35]} 21. Nd6 {[%clk 0:02:04]}  Rd8 {[%clk 0:01:25]} 22. Nxe8 {[%clk 0:02:04]}  Rxe8 {[%clk 0:01:24]} 23. e3 {[%clk 0:02:04]}  Nf5 {[%clk 0:01:15]} 24. Bc6 {[%clk 0:02:02]} 1-0


[Site "https://www.chess.com"]

[Event "Titled Tuesday Blitz June 6 Early 2023"]
[White "Jiganchine, Roman"]
[Black "Sourath Biswas"]
[WhiteFideId "2603667"]
[BlackFideId "35091484"]
[WhiteElo "2289"]
[BlackElo "2171"]
[Result "0-1"]
[Round "1"]
[TimeControl "180+2"]
[Date "2023.06.06"]
[WhiteClock "0:00:04"]
[BlackClock "0:00:14"]
[Board "151"]

1. e4 {[%clk 0:03:00]}  c6 {[%clk 0:02:58]} 2. d4 {[%clk 0:03:00]}  d5 {[%clk 0:02:59]} 3. exd5 {[%clk 0:03:00]}  cxd5 {[%clk 0:02:58]} 4. Nf3 {[%clk 0:03:00]}  Nc6 {[%clk 0:02:59]} 5. c4 {[%clk 0:02:59]}  Nf6 {[%clk 0:02:59]} 6. Nc3 {[%clk 0:02:59]}  Bg4 {[%clk 0:02:59]} 7. cxd5 {[%clk 0:02:56]}  Nxd5 {[%clk 0:03:00]} 8. Qb3 {[%clk 0:02:56]}  Bxf3 {[%clk 0:03:00]} 9. gxf3 {[%clk 0:02:56]}  e6 {[%clk 0:02:56]} 10. Qxb7 {[%clk 0:02:55]}  Nxd4 {[%clk 0:02:56]} 11. Bb5+ {[%clk 0:02:55]}  Nxb5 {[%clk 0:02:57]} 12. Qc6+ {[%clk 0:02:56]}  Ke7 {[%clk 0:02:57]} 13. Qxb5 {[%clk 0:02:54]}  Qd7 {[%clk 0:02:54]} 14. Nxd5+ {[%clk 0:02:52]}  exd5 {[%clk 0:02:54]} 15. Bg5+ {[%clk 0:02:52]}  f6 {[%clk 0:02:54]} 16. Qxd7+ {[%clk 0:02:52]}  Kxd7 {[%clk 0:02:54]} 17. Be3 {[%clk 0:02:52]}  Bb4+ {[%clk 0:02:44]} 18. Ke2 {[%clk 0:02:35]}  Ke6 {[%clk 0:02:44]} 19. Rhd1 {[%clk 0:02:28]}  Rac8 {[%clk 0:02:36]} 20. a3 {[%clk 0:02:28]}  Ba5 {[%clk 0:02:26]} 21. Rac1 {[%clk 0:02:25]}  Bb6 {[%clk 0:02:25]} 22. Kd3 {[%clk 0:01:55]}  d4 {[%clk 0:02:15]} 23. Bf4 {[%clk 0:01:48]}  Kd5 {[%clk 0:02:15]} 24. h4 {[%clk 0:01:47]}  g6 {[%clk 0:01:57]} 25. Rh1 {[%clk 0:01:41]}  h6 {[%clk 0:01:55]} 26. Bg3 {[%clk 0:01:37]}  g5 {[%clk 0:01:40]} 27. f4 {[%clk 0:01:34]}  g4 {[%clk 0:01:39]} 28. f5 {[%clk 0:01:34]}  h5 {[%clk 0:01:12]} 29. Rhe1 {[%clk 0:01:29]}  Rce8 {[%clk 0:00:27]} 30. Bf4 {[%clk 0:01:20]}  Ba5 {[%clk 0:00:19]} 31. b4 {[%clk 0:00:52]}  Bb6 {[%clk 0:00:20]} 32. a4 {[%clk 0:00:52]}  a5 {[%clk 0:00:16]} 33. b5 {[%clk 0:00:39]}  Bc5 {[%clk 0:00:16]} 34. Bd2 {[%clk 0:00:31]}  Re5 {[%clk 0:00:17]} 35. Bxa5 {[%clk 0:00:25]}  Ra8 {[%clk 0:00:16]} 36. Bc7 {[%clk 0:00:25]}  Rxe1 {[%clk 0:00:16]} 37. Rxe1 {[%clk 0:00:23]}  Rxa4 {[%clk 0:00:16]} 38. b6 {[%clk 0:00:16]}  Ra3+ {[%clk 0:00:09]} 39. Kc2 {[%clk 0:00:16]}  Rc3+ {[%clk 0:00:04]} 40. Kb2 {[%clk 0:00:12]}  Kc4 {[%clk 0:00:05]} 41. Rc1 {[%clk 0:00:09]}  Ba3+ {[%clk 0:00:05]} 42. Kb1 {[%clk 0:00:05]}  Bxc1 {[%clk 0:00:06]} 43. Ka2 {[%clk 0:00:06]}  Rc2+ {[%clk 0:00:05]} 44. Kb1 {[%clk 0:00:05]}  Rc3 {[%clk 0:00:06]} 45. b7 {[%clk 0:00:04]}  Rb3+ {[%clk 0:00:06]} 46. Kxc1 {[%clk 0:00:04]}  Rxb7 {[%clk 0:00:07]} 47. Bd6 {[%clk 0:00:05]}  d3 {[%clk 0:00:08]} 48. Kd2 {[%clk 0:00:04]}  Rd7 {[%clk 0:00:08]} 49. Bf4 {[%clk 0:00:04]}  Kd5 {[%clk 0:00:09]} 50. Kxd3 {[%clk 0:00:04]}  Ra7 {[%clk 0:00:10]} 51. Be3 {[%clk 0:00:03]}  Ra3+ {[%clk 0:00:10]} 52. Ke2 {[%clk 0:00:04]}  Ke4 {[%clk 0:00:11]} 53. Kf1 {[%clk 0:00:04]}  Kxf5 {[%clk 0:00:12]} 54. Kg2 {[%clk 0:00:04]}  Ke4 {[%clk 0:00:12]} 55. Kg3 {[%clk 0:00:04]}  Rxe3+ {[%clk 0:00:13]} 56. fxe3 {[%clk 0:00:04]}  Kxe3 {[%clk 0:00:14]} 0-1


[Site "https://www.chess.com"]

[Event "Titled Tuesday Blitz June 6 Early 2023"]
[White "Todorovic, Bojan"]
[Black "Chor, Kevin"]
[WhiteFideId "917087"]
[BlackFideId "2090740"]
[WhiteElo "2266"]
[BlackElo "2585"]
[Result "1-0"]
[Round "1"]
[TimeControl "180+2"]
[Date "2023.06.06"]
[WhiteClock "0:01:21"]
[BlackClock "0:01:13"]
[Board "153"]

1. d4 {[%clk 0:02:59]}  Nf6 {[%clk 0:02:59]} 2. c4 {[%clk 0:02:58]}  g6 {[%clk 0:02:59]} 3. Nc3 {[%clk 0:02:57]}  Bg7 {[%clk 0:03:00]} 4. e4 {[%clk 0:02:57]}  d6 {[%clk 0:03:01]} 5. Nf3 {[%clk 0:02:57]}  O-O {[%clk 0:03:01]} 6. Be2 {[%clk 0:02:57]}  Na6 {[%clk 0:03:01]} 7. O-O {[%clk 0:02:56]}  e5 {[%clk 0:03:02]} 8. Be3 {[%clk 0:02:55]}  Ng4 {[%clk 0:03:01]} 9. Bg5 {[%clk 0:02:54]}  f6 {[%clk 0:03:01]} 10. Bc1 {[%clk 0:02:54]}  f5 {[%clk 0:02:49]} 11. dxe5 {[%clk 0:02:44]}  Nxe5 {[%clk 0:02:41]} 12. Nxe5 {[%clk 0:02:42]}  Bxe5 {[%clk 0:02:40]} 13. Be3 {[%clk 0:02:33]}  Qf6 {[%clk 0:02:28]} 14. Nd5 {[%clk 0:02:31]}  Qf7 {[%clk 0:02:28]} 15. exf5 {[%clk 0:02:22]}  Bxf5 {[%clk 0:02:28]} 16. Qd2 {[%clk 0:02:21]}  Nc5 {[%clk 0:02:16]} 17. f3 {[%clk 0:02:17]}  c6 {[%clk 0:02:13]} 18. Nc3 {[%clk 0:02:14]}  Rad8 {[%clk 0:02:13]} 19. Rad1 {[%clk 0:01:59]}  Rfe8 {[%clk 0:02:08]} 20. Rfe1 {[%clk 0:01:42]}  Be6 {[%clk 0:01:50]} 21. b3 {[%clk 0:01:40]}  b6 {[%clk 0:01:48]} 22. Bf1 {[%clk 0:01:38]}  Qg7 {[%clk 0:01:39]} 23. Ne2 {[%clk 0:01:31]}  d5 {[%clk 0:01:37]} 24. Nf4 {[%clk 0:01:25]}  dxc4 {[%clk 0:01:27]} 25. Qxd8 {[%clk 0:01:24]}  Rxd8 {[%clk 0:01:14]} 26. Rxd8+ {[%clk 0:01:23]}  Kf7 {[%clk 0:01:15]} 27. Nxe6 {[%clk 0:01:23]}  Nxe6 {[%clk 0:01:13]} 28. Rd7+ {[%clk 0:01:21]} 1-0


[Site "https://www.chess.com"]

[Event "Titled Tuesday Blitz June 6 Early 2023"]
[White "Kochiev, Ivan"]
[Black "Napoli, Nicolo"]
[WhiteFideId "2917890"]
[BlackFideId "813702"]
[WhiteElo "2287"]
[BlackElo "2308"]
[Result "1-0"]
[Round "1"]
[TimeControl "180+2"]
[Date "2023.06.06"]
[WhiteClock "0:00:10"]
[BlackClock "0:00:03"]
[Board "154"]

1. e4 {[%clk 0:02:58]}  c6 {[%clk 0:02:55]} 2. d4 {[%clk 0:02:56]}  d5 {[%clk 0:02:56]} 3. Nc3 {[%clk 0:02:56]}  dxe4 {[%clk 0:02:56]} 4. Nxe4 {[%clk 0:02:57]}  Bf5 {[%clk 0:02:57]} 5. Ng3 {[%clk 0:02:57]}  Bg6 {[%clk 0:02:57]} 6. Nf3 {[%clk 0:02:57]}  Nd7 {[%clk 0:02:56]} 7. h4 {[%clk 0:02:58]}  h6 {[%clk 0:02:55]} 8. h5 {[%clk 0:02:57]}  Bh7 {[%clk 0:02:56]} 9. Bd3 {[%clk 0:02:58]}  Bxd3 {[%clk 0:02:56]} 10. Qxd3 {[%clk 0:02:59]}  Ngf6 {[%clk 0:02:56]} 11. Bd2 {[%clk 0:02:59]}  Qc7 {[%clk 0:02:56]} 12. O-O-O {[%clk 0:02:59]}  e6 {[%clk 0:02:56]} 13. Kb1 {[%clk 0:02:54]}  O-O-O {[%clk 0:02:56]} 14. c4 {[%clk 0:02:52]}  Bd6 {[%clk 0:02:52]} 15. Ne4 {[%clk 0:02:52]}  Nxe4 {[%clk 0:02:52]} 16. Qxe4 {[%clk 0:02:53]}  Nf6 {[%clk 0:02:53]} 17. Qe2 {[%clk 0:02:54]}  c5 {[%clk 0:02:54]} 18. Bc3 {[%clk 0:02:52]}  cxd4 {[%clk 0:02:54]} 19. Nxd4 {[%clk 0:02:51]}  a6 {[%clk 0:02:54]} 20. Rd3 {[%clk 0:02:22]}  Rd7 {[%clk 0:02:33]} 21. b3 {[%clk 0:02:03]}  Rhd8 {[%clk 0:02:31]} 22. Nc2 {[%clk 0:01:42]}  Be7 {[%clk 0:01:54]} 23. Rxd7 {[%clk 0:01:26]}  Qxd7 {[%clk 0:01:51]} 24. g4 {[%clk 0:01:26]}  Qd3 {[%clk 0:01:46]} 25. Qxd3 {[%clk 0:01:17]}  Rxd3 {[%clk 0:01:47]} 26. Kb2 {[%clk 0:01:18]}  Nxg4 {[%clk 0:01:37]} 27. Bxg7 {[%clk 0:01:16]}  Nxf2 {[%clk 0:01:37]} 28. Rf1 {[%clk 0:01:12]}  Nd1+ {[%clk 0:01:28]} 29. Kc1 {[%clk 0:01:03]}  Bg5+ {[%clk 0:01:28]} 30. Kb1 {[%clk 0:01:00]}  f5 {[%clk 0:01:21]} 31. Nd4 {[%clk 0:00:58]}  Ne3 {[%clk 0:00:57]} 32. Rg1 {[%clk 0:00:48]}  Kd7 {[%clk 0:00:42]} 33. Nf3 {[%clk 0:00:48]}  Bf4 {[%clk 0:00:33]} 34. Bxh6 {[%clk 0:00:48]}  Bxh6 {[%clk 0:00:08]} 35. Ne5+ {[%clk 0:00:48]}  Kd6 {[%clk 0:00:08]} 36. Nxd3 {[%clk 0:00:49]}  Ng4 {[%clk 0:00:09]} 37. Kc2 {[%clk 0:00:43]}  e5 {[%clk 0:00:08]} 38. Nf2 {[%clk 0:00:27]}  Be3 {[%clk 0:00:05]} 39. Nxg4 {[%clk 0:00:24]}  Bxg1 {[%clk 0:00:05]} 40. h6 {[%clk 0:00:25]}  Bd4 {[%clk 0:00:05]} 41. Ne3 {[%clk 0:00:17]}  e4 {[%clk 0:00:04]} 42. Nxf5+ {[%clk 0:00:17]}  Ke6 {[%clk 0:00:04]} 43. Nxd4+ {[%clk 0:00:18]}  Kf7 {[%clk 0:00:04]} 44. Nf5 {[%clk 0:00:17]}  Kg6 {[%clk 0:00:05]} 45. Kd2 {[%clk 0:00:17]}  b5 {[%clk 0:00:04]} 46. c5 {[%clk 0:00:17]}  a5 {[%clk 0:00:04]} 47. c6 {[%clk 0:00:18]}  a4 {[%clk 0:00:04]} 48. c7 {[%clk 0:00:18]}  a3 {[%clk 0:00:04]} 49. c8=Q {[%clk 0:00:18]}  b4 {[%clk 0:00:05]} 50. Qe6+ {[%clk 0:00:17]}  Kg5 {[%clk 0:00:06]} 51. Qxe4 {[%clk 0:00:17]}  Kh5 {[%clk 0:00:05]} 52. Qh4+ {[%clk 0:00:13]}  Kg6 {[%clk 0:00:06]} 53. h7 {[%clk 0:00:14]}  Kf7 {[%clk 0:00:03]} 54. h8=Q {[%clk 0:00:13]}  Kg6 {[%clk 0:00:04]} 55. Ne7+ {[%clk 0:00:10]}  Kf7 {[%clk 0:00:03]} 56. Q4f6# {[%clk 0:00:10]} 1-0


[Site "https://www.chess.com"]

[Event "Titled Tuesday Blitz June 6 Early 2023"]
[White "Kuzmin, Ilya"]
[Black "Kashlinskaya, Alina"]
[WhiteFideId "4153863"]
[BlackFideId "4198026"]
[WhiteElo "2093"]
[BlackElo "2383"]
[Result "0-1"]
[Round "1"]
[TimeControl "180+2"]
[Date "2023.06.06"]
[WhiteClock "0:00:57"]
[BlackClock "0:01:14"]
[Board "157"]

1. d4 {[%clk 0:02:57]}  d5 {[%clk 0:02:59]} 2. c4 {[%clk 0:02:57]}  dxc4 {[%clk 0:02:59]} 3. e4 {[%clk 0:02:57]}  e5 {[%clk 0:02:56]} 4. Nf3 {[%clk 0:02:57]}  Bb4+ {[%clk 0:02:52]} 5. Nc3 {[%clk 0:02:57]}  exd4 {[%clk 0:02:50]} 6. Nxd4 {[%clk 0:02:54]}  Nf6 {[%clk 0:02:41]} 7. Qa4+ {[%clk 0:02:48]}  Nc6 {[%clk 0:02:39]} 8. Nxc6 {[%clk 0:02:48]}  Bxc3+ {[%clk 0:02:39]} 9. bxc3 {[%clk 0:02:48]}  bxc6 {[%clk 0:02:38]} 10. Bg5 {[%clk 0:02:26]}  O-O {[%clk 0:02:36]} 11. Be2 {[%clk 0:02:13]}  h6 {[%clk 0:02:33]} 12. Bh4 {[%clk 0:02:06]}  g5 {[%clk 0:02:23]} 13. Bg3 {[%clk 0:02:03]}  Nxe4 {[%clk 0:02:23]} 14. Qxc4 {[%clk 0:01:48]}  Qd2+ {[%clk 0:02:18]} 15. Kf1 {[%clk 0:01:48]}  Re8 {[%clk 0:02:02]} 16. Bxc7 {[%clk 0:01:20]}  a5 {[%clk 0:01:52]} 17. Qd3 {[%clk 0:01:15]}  Ba6 {[%clk 0:01:46]} 18. c4 {[%clk 0:01:15]}  Ra7 {[%clk 0:01:19]} 19. Bb6 {[%clk 0:01:08]}  Rd7 {[%clk 0:01:17]} 20. Qxd2 {[%clk 0:00:58]}  Nxd2+ {[%clk 0:01:16]} 21. Ke1 {[%clk 0:00:57]}  Nxc4 {[%clk 0:01:14]} 0-1


[Site "https://www.chess.com"]

[Event "Titled Tuesday Blitz June 6 Early 2023"]
[White "Novikov, Evgenij"]
[Black "Palacio,Igor Da Paz"]
[WhiteFideId "4125380"]
[BlackFideId "2121140"]
[WhiteElo "2242"]
[BlackElo "2126"]
[Result "1-0"]
[Round "1"]
[TimeControl "180+2"]
[Date "2023.06.06"]
[WhiteClock "0:00:03"]
[BlackClock "0:00:01"]
[Board "158"]

1. d4 {[%clk 0:02:59]}  Nf6 {[%clk 0:02:59]} 2. c4 {[%clk 0:02:57]}  e6 {[%clk 0:02:58]} 3. a3 {[%clk 0:02:57]}  b6 {[%clk 0:02:58]} 4. Nc3 {[%clk 0:02:57]}  Bb7 {[%clk 0:02:58]} 5. Nf3 {[%clk 0:02:56]}  Be7 {[%clk 0:02:58]} 6. g3 {[%clk 0:02:57]}  O-O {[%clk 0:02:58]} 7. Bg2 {[%clk 0:02:52]}  d6 {[%clk 0:02:58]} 8. O-O {[%clk 0:02:48]}  Nbd7 {[%clk 0:02:57]} 9. Qc2 {[%clk 0:02:42]}  e5 {[%clk 0:02:55]} 10. d5 {[%clk 0:02:32]}  Ne8 {[%clk 0:02:47]} 11. e4 {[%clk 0:02:27]}  a5 {[%clk 0:02:35]} 12. Be3 {[%clk 0:02:21]}  g6 {[%clk 0:02:29]} 13. b4 {[%clk 0:02:15]}  axb4 {[%clk 0:02:28]} 14. axb4 {[%clk 0:02:16]}  Rxa1 {[%clk 0:02:26]} 15. Rxa1 {[%clk 0:02:17]}  Ng7 {[%clk 0:02:24]} 16. Bh6 {[%clk 0:01:59]}  f6 {[%clk 0:01:51]} 17. Ne1 {[%clk 0:01:45]}  f5 {[%clk 0:01:49]} 18. exf5 {[%clk 0:01:44]}  gxf5 {[%clk 0:01:49]} 19. Nb5 {[%clk 0:01:37]}  Rf7 {[%clk 0:01:36]} 20. Na7 {[%clk 0:01:30]}  e4 {[%clk 0:00:58]} 21. Be3 {[%clk 0:01:11]}  Bf6 {[%clk 0:00:55]} 22. Rd1 {[%clk 0:00:59]}  Ne5 {[%clk 0:00:51]} 23. c5 {[%clk 0:00:52]}  bxc5 {[%clk 0:00:49]} 24. bxc5 {[%clk 0:00:52]}  Ba6 {[%clk 0:00:41]} 25. Nc6 {[%clk 0:00:49]}  Nxc6 {[%clk 0:00:24]} 26. dxc6 {[%clk 0:00:50]}  Ne8 {[%clk 0:00:20]} 27. Bf4 {[%clk 0:00:48]}  Qe7 {[%clk 0:00:16]} 28. Qa2 {[%clk 0:00:47]}  Bb5 {[%clk 0:00:14]} 29. cxd6 {[%clk 0:00:44]}  Nxd6 {[%clk 0:00:13]} 30. Rc1 {[%clk 0:00:36]}  Kg7 {[%clk 0:00:13]} 31. Bf1 {[%clk 0:00:36]}  Be5 {[%clk 0:00:12]} 32. Bxe5+ {[%clk 0:00:31]}  Qxe5 {[%clk 0:00:13]} 33. Bxb5 {[%clk 0:00:31]}  Qxb5 {[%clk 0:00:13]} 34. Ng2 {[%clk 0:00:26]}  Re7 {[%clk 0:00:07]} 35. Ne3 {[%clk 0:00:24]}  Qe5 {[%clk 0:00:07]} 36. Qa1 {[%clk 0:00:22]}  Qxa1 {[%clk 0:00:06]} 37. Rxa1 {[%clk 0:00:23]}  Rf7 {[%clk 0:00:05]} 38. Ra7 {[%clk 0:00:22]}  Nb5 {[%clk 0:00:05]} 39. Ra6 {[%clk 0:00:18]}  Nd4 {[%clk 0:00:04]} 40. Nd5 {[%clk 0:00:18]}  Nf3+ {[%clk 0:00:03]} 41. Kg2 {[%clk 0:00:17]}  Ne5 {[%clk 0:00:03]} 42. Nf4 {[%clk 0:00:15]}  Kf6 {[%clk 0:00:03]} 43. h3 {[%clk 0:00:14]}  h6 {[%clk 0:00:02]} 44. Ra7 {[%clk 0:00:04]}  Nxc6 {[%clk 0:00:02]} 45. Rxc7 {[%clk 0:00:04]}  Rxc7 {[%clk 0:00:01]} 46. Nd5+ {[%clk 0:00:05]}  Ke5 {[%clk 0:00:02]} 47. Nxc7 {[%clk 0:00:06]}  Nd4 {[%clk 0:00:02]} 48. Na6 {[%clk 0:00:05]}  Nf3 {[%clk 0:00:02]} 49. Nb4 {[%clk 0:00:05]}  Ne1+ {[%clk 0:00:02]} 50. Kh2 {[%clk 0:00:04]}  Nf3+ {[%clk 0:00:02]} 51. Kg2 {[%clk 0:00:04]}  Ne1+ {[%clk 0:00:03]} 52. Kf1 {[%clk 0:00:05]}  Nf3 {[%clk 0:00:03]} 53. Nc2 {[%clk 0:00:05]}  Nd2+ {[%clk 0:00:03]} 54. Kg2 {[%clk 0:00:03]}  Nf3 {[%clk 0:00:03]} 55. Ne3 {[%clk 0:00:04]}  Ne1+ {[%clk 0:00:03]} 56. Kg1 {[%clk 0:00:04]}  Nf3+ {[%clk 0:00:03]} 57. Kf1 {[%clk 0:00:05]}  Nd2+ {[%clk 0:00:04]} 58. Kg2 {[%clk 0:00:04]}  Nf3 {[%clk 0:00:04]} 59. g4 {[%clk 0:00:04]}  fxg4 {[%clk 0:00:02]} 60. Nxg4+ {[%clk 0:00:05]}  Kf4 {[%clk 0:00:02]} 61. Nxh6 {[%clk 0:00:06]}  Ne1+ {[%clk 0:00:02]} 62. Kf1 {[%clk 0:00:05]}  Nf3 {[%clk 0:00:03]} 63. Ng4 {[%clk 0:00:05]}  Nd2+ {[%clk 0:00:02]} 64. Kg2 {[%clk 0:00:04]}  Nf3 {[%clk 0:00:03]} 65. Ne3 {[%clk 0:00:05]}  Nh4+ {[%clk 0:00:03]} 66. Kf1 {[%clk 0:00:04]}  Nf3 {[%clk 0:00:03]} 67. Ng2+ {[%clk 0:00:04]}  Kg5 {[%clk 0:00:02]} 68. Ne3 {[%clk 0:00:03]}  Kf4 {[%clk 0:00:02]} 69. Nd5+ {[%clk 0:00:03]}  Kg5 {[%clk 0:00:02]} 70. Nc3 {[%clk 0:00:04]}  Kf4 {[%clk 0:00:02]} 71. Kg2 {[%clk 0:00:03]}  Nh4+ {[%clk 0:00:03]} 72. Kh2 {[%clk 0:00:03]}  Nf3+ {[%clk 0:00:03]} 73. Kh1 {[%clk 0:00:04]}  Nh4 {[%clk 0:00:03]} 74. Nd5+ {[%clk 0:00:03]}  Kf3 {[%clk 0:00:03]} 75. Kg1 {[%clk 0:00:03]}  Ng6 {[%clk 0:00:02]} 76. Kf1 {[%clk 0:00:02]}  Nh4 {[%clk 0:00:02]} 77. Nc3 {[%clk 0:00:02]}  Kf4 {[%clk 0:00:01]} 78. Ke2 {[%clk 0:00:02]}  Nf3 {[%clk 0:00:01]} 79. Nd5+ {[%clk 0:00:03]}  Kf5 {[%clk 0:00:01]} 80. Ke3 {[%clk 0:00:03]}  Ng1 {[%clk 0:00:01]} 81. h4 {[%clk 0:00:03]} 1-0


[Site "https://www.chess.com"]